bitfinex-derivatives/quotes_ETHF0:USTF0_20250606
["timestamp","ask_amount","ask_price","bid_price","bid_amount"]
[1749244298946,0.80165,2493.3,2493.2,0.80162]
[1749244299251,0.80162,2493.4,2493.3,0.80159]
[1749244301054,1.45052,2493.4,2493.3,0.80159]
[1749244301754,0.6489,2493.4,2492.8,3.2078]
[1749244301951,0.80169,2493.2,2493.1,0.80165]
[1749244302255,0.80173,2493.1,2493.0,0.80169]
[1749244302451,1.96977371,2493.1,2493.0,0.80169]
[1749244302652,1.96977371,2493.1,2492.7,4.00634]
[1749244302653,0.80175,2493.0,2492.9,0.80172]
[1749244303158,0.80178,2492.9,2492.8,0.80174]
[1749244303957,2.65984,2493.0,2492.5,3.2078]
[1749244304148,0.80185,2492.6,2492.5,4.00963]
[1749244306962,0.80185,2492.6,2492.5,0.80183]
[1749244307259,0.80188,2492.6,2492.5,0.80186]
[1749244310266,0.80188,2492.6,2492.5,0.87319351]
[1749244312863,3.2078,2493.1,2492.5,0.07133351]
[1749244313163,0.80175,2493.0,2492.9,0.80172]
[1749244316161,0.80185,2492.7,2492.6,0.80183]
[1749244316367,0.80185,2492.6,2492.5,0.87318351]
[1749244320468,1.97624943,2492.6,2492.5,0.87318351]
[1749244321266,1.97624943,2492.6,2492.5,0.07133351]
[1749244321569,3.31704943,2492.6,2492.5,0.07133351]
[1749244321971,3.31704943,2492.6,2492.5,0.87321351]
[1749244328778,1.97624943,2492.6,2492.5,0.87321351]
[1749244330988,0.80185,2492.6,2492.5,0.87321351]
[1749244331178,1.98038848,2492.6,2492.5,0.87321351]
[1749244332687,3.26338848,2492.6,2492.5,0.87321351]
[1749244334093,3.26436672,2492.6,2492.5,0.87321351]
[1749244341498,3.26436672,2492.6,2492.5,0.07133351]
[1749244341697,3.26487642,2492.6,2492.5,0.07133351]
[1749244342500,3.26487642,2492.6,2492.5,0.87321351]
[1749244343002,0.80198,2492.2,2492.1,1.48899]
[1749244343201,0.80204,2492.0,2491.9,3.2078]
[1749244343497,1.98208642,2492.0,2491.9,0.80207]
[1749244345299,1.18002642,2492.0,2491.4,7.37894]
[1749244345493,0.80213,2491.8,2491.7,0.8021]
[1749244345793,1.18002642,2491.8,2491.7,0.8021]
[1749244347502,1.98212642,2491.8,2491.7,0.8021]
[1749244355104,1.98212642,2491.8,2491.7,0.87343351]
[1749244356504,1.98212642,2491.8,2491.7,0.87347351]
[1749244358308,0.8021,2491.8,2491.7,0.87347351]
[1749244358908,1.4947,2491.8,2491.7,0.87347351]
[1749244360011,1.4947,2491.8,2491.2,0.80228]
[1749244360214,0.8023,2491.3,2491.2,0.80226]
[1749244360513,4.7025,2491.8,2491.7,0.80214]
[1749244361105,4.7025,2491.8,2491.7,0.87347351]
[1749244361913,5.87738981,2491.8,2491.7,0.87347351]
[1749244363109,5.07528981,2491.8,2491.7,0.87347351]
[1749244363414,5.87738981,2491.8,2491.7,0.87347351]
[1749244364418,5.87738981,2491.8,2491.7,0.07133351]
[1749244364908,5.87738981,2491.8,2491.7,0.87347351]
[1749244365711,1.17488981,2491.8,2491.7,0.87347351]
[1749244365910,1.17488981,2491.8,2491.7,2.20167351]
[1749244366912,1.97698981,2491.8,2491.7,2.20167351]
[1749244367114,1.17488981,2491.8,2491.7,2.20167351]
[1749244367916,0.80201,2492.2,2492.1,0.80198]
[1749244368112,1.97484091,2492.2,2492.1,0.80198]
[1749244369316,1.17283091,2492.2,2492.1,0.80198]
[1749244369516,1.97481091,2492.2,2492.1,0.80198]
[1749244376122,0.80198,2492.2,2492.1,0.80198]
[1749244376324,1.97874339,2492.2,2492.1,0.80198]
[1749244385432,1.97874339,2492.2,2492.1,0.87331351]
[1749244389733,3.28794339,2492.2,2492.1,0.87331351]
[1749244390834,3.28794339,2492.2,2492.1,0.87334351]
[1749244391030,3.28794339,2492.2,2492.1,0.07133351]
[1749244391230,7.48596339,2492.2,2491.4,9.93836]
[1749244391531,0.80216,2491.7,2491.6,0.80211]
[1749244391730,1.97892339,2491.7,2491.6,0.80211]
[1749244394936,1.17676339,2491.7,2491.6,0.80211]
[1749244395137,1.19731781,2491.8,2491.5,2.00547]
[1749244395337,1.19731781,2491.7,2491.6,1.47647]
[1749244396844,1.19731781,2491.7,2491.6,8.50407]
[1749244399736,1.19731781,2491.7,2491.6,8.57540351]
[1749244400346,1.19731781,2491.7,2491.6,3.57540351]
[1749244403045,1.45193,2492.1,2491.7,2.0053]
[1749244403345,1.45193,2492.1,2492.0,0.80204]
[1749244403548,2.65020852,2492.1,2492.0,0.80204]
[1749244405647,1.84817852,2492.1,2492.0,0.80204]
[1749244406643,2.65018852,2492.1,2492.0,0.80204]
[1749244407147,1.84817852,2492.1,2492.0,0.80204]
[1749244408246,2.65018852,2492.1,2492.0,0.80204]
[1749244415856,2.65018852,2492.1,2492.0,0.87337351]
[1749244419155,3.94328852,2492.1,2492.0,0.87337351]
[1749244423653,3.14265991,2492.1,2492.0,0.87337351]
[1749244423860,1.84955991,2492.1,2492.0,0.87337351]
[1749244424459,2.65156991,2492.1,2492.0,0.87337351]
[1749244424757,3.99716991,2492.1,2492.0,0.87337351]
[1749244425155,3.99716991,2492.1,2492.0,0.07133351]
[1749244425353,8.99716991,2492.1,2492.0,0.07133351]
[1749244425751,12.15699966,2492.1,2492.0,0.07133351]
[1749244426361,7.15699966,2492.1,2492.0,0.01194306]
[1749244427264,2.00521,2491.9,2491.2,6.72874]
[1749244427558,0.80226,2491.4,2491.1,5.21362]
[1749244427765,0.80223,2491.5,2491.4,0.8022]
[1749244427963,3.33291284,2491.5,2491.4,0.8022]
[1749244428361,0.80226,2491.4,2491.3,0.80224]
[1749244428558,0.8023,2491.3,2491.2,0.80228]
[1749244428760,1.19848284,2491.3,2490.9,6.72898]
[1749244428961,2.79752,2491.2,2491.1,0.8023]
[1749244429163,3.99600284,2491.2,2491.1,0.8023]
[1749244429365,3.19368284,2491.2,2491.1,0.8023]
[1749244430656,3.99598284,2491.2,2491.1,0.8023]
[1749244430863,3.19368284,2491.2,2491.1,0.8023]
[1749244433768,3.99598284,2491.2,2491.1,0.8023]
[1749244434161,3.19368284,2491.2,2491.1,0.8023]
[1749244435662,3.99598284,2491.2,2491.1,0.8023]
[1749244439462,2.7975,2491.2,2491.1,0.8023]
[1749244439662,3.9917943,2491.2,2491.1,0.8023]
[1749244440068,7.1995943,2491.2,2491.1,0.8023]
[1749244440264,6.3972943,2491.2,2490.5,5.3694]
[1749244440462,6.3972943,2491.2,2490.8,0.80237]
[1749244440463,0.80242,2490.9,2490.8,0.80237]
[1749244440662,0.80238,2491.0,2490.9,0.80239]
[1749244440862,2.66592403,2491.0,2490.9,0.80239]
[1749244443264,2.66592403,2491.0,2490.4,25.527]
[1749244443265,0.80254,2490.5,2490.4,0.80253]
[1749244443465,0.80252,2490.6,2490.5,0.80251]
[1749244443665,0.80253,2490.5,2490.4,0.80252]
[1749244443865,2.636729,2490.5,2490.4,0.80252]
[1749244444472,1.834199,2490.5,2490.4,0.80252]
[1749244445170,1.834199,2490.5,2490.3,0.80256]
[1749244445372,0.80259,2490.4,2490.3,0.80256]
[1749244446163,1.9854,2490.5,2490.2,3.2078]
[1749244446363,1.44385,2490.5,2490.4,0.80256]
[1749244446567,2.63461714,2490.5,2490.4,0.80256]
[1749244447466,1.44385,2490.5,2490.4,0.80256]
[1749244447674,2.63451882,2490.5,2490.4,0.80256]
[1749244448476,1.44385,2490.5,2490.4,0.80256]
[1749244450679,2.634052,2490.5,2490.4,0.80256]
[1749244451373,1.44385,2490.5,2490.4,0.80256]
[1749244451679,2.63352077,2490.5,2490.4,0.80256]
[1749244451879,2.00639,2490.4,2490.0,3.2078]
[1749244452075,0.80264,2490.2,2490.1,0.80262]
[1749244452784,1.45574,2490.2,2490.1,0.80262]
[1749244454675,2.64636514,2490.2,2490.1,0.80262]
[1749244454872,1.84372514,2490.2,2490.1,0.80262]
[1749244455075,2.64634514,2490.2,2490.1,0.80262]
[1749244455280,3.94788481,2490.2,2490.1,0.80262]
[1749244456280,0.80278,2489.8,2489.7,0.80276]
[1749244456468,5.172,2490.1,2489.5,2.00711]
[1749244456677,5.91993499,2490.0,2489.5,3.2078]
[1749244456874,0.80281,2489.6,2489.5,3.2078]
[1749244457077,0.80284,2489.6,2489.5,0.80282]
[1749244457282,0.80284,2489.6,2489.4,0.656]
[1749244457283,0.80285,2489.5,2489.4,0.656]
[1749244457580,0.80285,2489.5,2489.3,0.6838]
[1749244457581,0.80288,2489.4,2489.3,0.6838]
[1749244457977,0.80287,2489.5,2489.4,0.80284]
[1749244458177,0.80288,2489.4,2489.3,1.48669]
[1749244459080,0.80287,2489.5,2489.4,0.80285]
[1749244460086,2.74784,2489.6,2489.5,0.80284]
[1749244460390,3.93567819,2489.6,2489.5,0.80284]
[1749244460683,3.93567819,2489.6,2489.5,0.87417351]
[1749244463888,1.99067819,2489.6,2489.5,0.87417351]
[1749244473391,0.80271,2489.9,2489.8,0.80271]
[1749244473991,0.00602168,2490.0,2489.9,0.80271]
[1749244474596,0.00602168,2490.0,2489.9,2.14261]
[1749244475796,0.647,2490.4,2490.3,0.80255]
[1749244475797,0.80256,2490.4,2490.3,0.80255]
[1749244476185,1.4495,2490.6,2490.5,0.80252]
[1749244478900,0.8025,2490.6,2490.5,0.80252]
[1749244480399,1.46285168,2490.8,2490.7,0.80246]
[1749244483299,1.68e-06,2490.8,2490.7,13.76226]
[1749244483499,1.68e-06,2490.8,2490.7,4.01026]
[1749244483806,1.68e-06,2490.8,2490.7,5.55446]
[1749244485496,1.68e-06,2490.8,2490.7,0.80246]
[1749244485700,0.80248,2490.7,2490.6,0.80246]
[1749244485893,0.80248,2490.7,2490.4,24.9515]
[1749244485894,0.80252,2490.5,2490.4,0.6625]
[1749244486097,0.80252,2490.5,2490.4,0.80253]
[1749244487603,0.80252,2490.6,2490.5,0.80249]
[1749244487802,2.18632,2490.6,2490.5,0.80249]
[1749244490610,0.80252,2490.6,2490.5,0.80249]
[1749244494916,2.18332,2490.6,2490.5,0.80249]
[1749244499123,0.80252,2490.5,2490.4,0.07133351]
[1749244499325,6.47324527,2490.5,2490.4,0.07133351]
[1749244500119,11.47324527,2490.5,2490.4,0.07133351]
[1749244501123,6.47324527,2490.5,2490.4,0.07133351]
[1749244502221,11.22524527,2490.5,2490.4,0.07133351]
[1749244503522,2.00642,2490.4,2489.7,2.00695]
[1749244503824,0.80268,2490.1,2490.0,0.80264]
[1749244504013,1.97260527,2490.1,2490.0,0.80264]
[1749244504421,0.80272,2490.0,2489.9,0.80269]
[1749244504625,1.97264527,2490.0,2489.9,0.80269]
[1749244504920,0.80271,2489.9,2489.8,0.00602168]
[1749244505127,2.61993527,2489.9,2489.8,0.80874168]
[1749244508132,1.81722527,2489.9,2489.8,0.80874168]
[1749244509332,0.6473,2489.9,2489.8,0.80874168]
[1749244509830,1.81824407,2489.9,2489.8,0.80874168]
[1749244510531,0.6473,2489.9,2489.8,0.80874168]
[1749244511331,0.8027,2490.0,2489.9,0.80271]
[1749244511530,2.66501031,2490.1,2490.0,0.80268]
[1749244511833,2.66500961,2490.1,2490.0,0.80268]
[1749244512135,1.97320961,2490.1,2490.0,0.80268]
[1749244512333,1.86233961,2490.1,2490.0,0.80268]
[1749244512735,1.17053961,2490.1,2490.0,0.80268]
[1749244513631,1.3592,2490.2,2490.1,0.80265]
[1749244513632,2.16182,2490.2,2490.1,0.80265]
[1749244513836,3.32773576,2490.2,2490.1,0.80265]
[1749244514738,1.96853576,2490.2,2490.1,0.80265]
[1749244514931,2.64463576,2490.2,2490.1,0.80265]
[1749244516137,0.80268,2490.0,2489.9,0.80269]
[1749244516336,1.96859576,2490.0,2489.9,0.80269]
[1749244517934,1.16591576,2490.0,2489.9,0.80269]
[1749244518136,1.96932887,2490.1,2490.0,0.80268]
[1749244518834,3.2078,2490.6,2490.0,5.0]
[1749244519034,1.9692346,2490.5,2490.4,0.80255]
[1749244519235,0.80258,2490.3,2490.2,4.6465]
[1749244519430,0.80261,2490.2,2490.1,0.6964]
[1749244519835,0.80261,2490.2,2490.1,1.49903]
[1749244520041,0.8026,2490.3,2490.2,0.80257]
[1749244520340,0.80258,2490.4,2490.3,0.80255]
[1749244521232,1.43178,2490.4,2490.3,0.80255]
[1749244522848,0.80262,2490.3,2490.2,0.80259]
[1749244523644,2.00646,2490.3,2489.9,3.91523351]
[1749244523942,0.80266,2490.1,2489.9,0.07133351]
[1749244524241,0.80266,2490.1,2490.0,0.80264]
[1749244525445,0.80268,2490.0,2489.9,0.07133351]
[1749244525635,1.46738,2490.0,2489.9,0.07133351]
[1749244526439,2.14428,2490.0,2489.9,0.07133351]
[1749244527542,0.80271,2489.9,2489.8,0.00602168]
[1749244527738,4.01051,2489.9,2489.8,0.00602168]
[1749244528942,0.8029,2489.4,2489.2,3.9035]
[1749244529135,0.8029,2489.4,2489.3,0.8029]
[1749244530346,0.8029,2489.3,2489.2,4.70642]
[1749244530641,0.8029,2489.3,2489.2,1.49862]
[1749244531047,0.80297,2489.2,2489.1,0.80295]
[1749244531348,3.16730343,2489.4,2489.2,0.80294]
[1749244531349,0.80292,2489.3,2489.2,0.80294]
[1749244531539,1.96270915,2489.3,2489.2,0.80294]
[1749244532638,1.15978915,2489.3,2489.2,0.80294]
[1749244532846,4.01664168,2489.6,2489.5,0.80284]
[1749244533137,1.96829274,2489.6,2489.5,0.80284]
[1749244533542,1.16547274,2489.6,2489.5,0.80284]
[1749244533947,0.6401,2490.1,2490.0,0.80268]
[1749244534144,5.16592975,2490.8,2490.4,0.80251]
[1749244534345,0.80254,2490.5,2490.4,0.80251]
[1749244534550,0.80252,2490.6,2490.5,0.8025]
[1749244535143,0.80255,2490.5,2490.4,0.80253]
[1749244535643,0.8025,2490.6,2490.5,0.80248]
[1749244536043,0.69592168,2490.8,2490.3,0.00602168]
[1749244536249,1.49837168,2490.8,2490.7,0.80245]
[1749244536548,0.00602168,2490.8,2490.7,0.80245]
[1749244537443,0.80844168,2490.8,2490.7,0.80245]
[1749244537642,0.00602168,2490.8,2490.7,0.80245]
[1749244539452,0.80844168,2490.8,2490.7,0.80245]
[1749244539657,0.00602168,2490.8,2490.5,1.3915]
[1749244539949,0.80845168,2490.8,2490.7,0.80245]
[1749244541050,0.00602168,2490.8,2490.7,0.80245]
[1749244541243,0.80844168,2490.8,2490.7,0.80245]
[1749244544156,0.00602168,2490.8,2490.7,0.80245]
[1749244544457,0.80844168,2490.8,2490.7,0.80245]
[1749244545954,1.96299795,2490.8,2490.7,0.80245]
[1749244548859,1.16057795,2490.8,2490.7,0.80245]
[1749244549358,0.00602168,2490.8,2490.7,0.80245]
[1749244549958,0.80844168,2490.8,2490.7,0.80245]
[1749244550759,1.96255979,2490.8,2490.7,0.80245]
[1749244550960,0.80844168,2490.8,2490.7,0.87378351]
[1749244551159,0.00602168,2490.8,2490.7,0.87378351]
[1749244552258,0.00602168,2490.8,2490.7,1.55068351]
[1749244552852,0.00602168,2490.8,2490.7,4.75848351]
[1749244559756,0.80844168,2490.8,2490.7,4.08158351]
[1749244559957,0.80844168,2490.8,2490.7,0.87378351]
[1749244560361,1.96080526,2490.8,2490.7,0.87378351]
[1749244560667,3.92500526,2490.8,2490.7,0.07133351]
[1749244561069,0.80252,2490.5,2490.4,3.2078]
[1749244561252,0.80255,2490.4,2490.3,0.00602168]
[1749244561459,3.91884881,2490.4,2490.3,0.00602168]
[1749244562562,3.9205883,2490.4,2490.3,0.00602168]
[1749244565165,3.9205883,2490.4,2490.3,0.07735519]
[1749244567867,3.91779252,2490.4,2490.3,0.07735519]
[1749244568071,3.91779252,2490.4,2490.3,0.87993519]
[1749244568870,1.15104252,2490.4,2490.3,0.87993519]
[1749244569077,0.6834,2490.7,2490.6,0.80248]
[1749244569370,1.83443468,2490.7,2490.6,0.80248]
[1749244573276,1.83487459,2490.7,2490.6,0.80248]
[1749244580577,1.83487459,2490.7,2490.6,0.87381351]
[1749244584179,1.83678799,2490.7,2490.6,0.87381351]
[1749244584782,1.15338799,2490.7,2490.6,0.87381351]
[1749244591385,3.2078,2491.1,2491.0,0.80236]
[1749244591589,3.8481,2491.1,2491.0,0.80236]
[1749244592489,4.65042,2491.1,2491.0,0.80236]
[1749244593489,3.8481,2491.1,2491.0,0.80236]
[1749244595085,0.00602168,2491.3,2491.2,0.80229]
[1749244598487,0.80828168,2491.3,2491.2,0.80229]
[1749244600598,0.80232,2491.2,2491.1,0.80231]
[1749244600785,0.65372168,2491.3,2491.2,0.80229]
[1749244601091,1.45598168,2491.3,2491.2,0.80229]
[1749244601691,2.79548168,2491.3,2491.2,0.80229]
[1749244601998,0.80232,2491.1,2491.0,0.87369351]
[1749244602892,2.14182,2491.2,2491.1,0.80232]
[1749244603094,0.80232,2491.2,2491.1,0.80232]
[1749244603394,1.97195517,2491.2,2491.1,0.80232]
[1749244604487,1.16963517,2491.2,2491.1,0.80232]
[1749244606991,1.97192517,2491.2,2491.1,0.80232]
[1749244610897,1.97192517,2491.2,2491.1,0.87365351]
[1749244613194,1.16963517,2491.2,2491.1,0.87365351]
[1749244614503,1.97192517,2491.2,2491.1,0.87365351]
[1749244616202,1.16963517,2491.2,2491.1,0.87365351]
[1749244616500,1.45601168,2491.3,2491.2,0.80229]
[1749244616699,2.62609298,2491.3,2491.2,0.80229]
[1749244617203,3.92739298,2491.3,2491.2,0.80229]
[1749244620712,0.80229,2491.2,2491.1,0.87364351]
[1749244620909,3.31880086,2491.2,2491.1,0.87364351]
[1749244622918,1.16901086,2491.2,2491.1,0.87364351]
[1749244623821,1.16901086,2491.2,2491.1,2.23204351]
[1749244624020,1.16901086,2491.2,2491.1,3.53154351]
[1749244624415,4.00999,2492.2,2491.1,3.53154351]
[1749244624416,0.6687,2491.8,2491.2,2.00574]
[1749244624620,1.47082,2491.8,2491.7,0.80213]
[1749244626118,1.47082,2491.8,2491.3,11.24646]
[1749244626119,0.8022,2491.6,2491.5,0.80217]
[1749244626324,2.10815,2491.7,2491.6,0.80216]
[1749244629618,2.10815,2491.7,2491.5,0.6677]
[1749244629619,0.80224,2491.5,2491.4,0.8022]
[1749244630123,0.80223,2491.5,2491.4,0.80221]
[1749244630319,1.45883,2491.5,2491.4,0.80221]
[1749244631923,0.80229,2491.2,2491.1,0.07133351]
[1749244632625,2.07619,2491.2,2491.1,0.07133351]
[1749244633124,2.07619,2491.2,2491.1,0.87365351]
[1749244636530,3.23495772,2491.2,2491.1,0.87365351]
[1749244640726,3.23495772,2491.2,2491.1,0.07133351]
[1749244641535,3.23495772,2491.2,2491.1,0.87365351]
[1749244642734,3.23495772,2491.2,2491.1,0.07133351]
[1749244645437,0.80245,2490.8,2490.6,0.6477]
[1749244645625,0.80245,2490.8,2490.7,0.80242]
[1749244646036,1.96063696,2490.8,2490.7,0.80242]
[1749244646834,0.80245,2490.7,2490.6,0.80249]
[1749244647038,2.64973696,2490.7,2490.6,0.80249]
[1749244650636,1.84728696,2490.7,2490.6,0.80249]
[1749244651036,2.64973696,2490.7,2490.6,0.80249]
[1749244651238,1.84728696,2490.7,2490.6,0.80249]
[1749244651437,1.15818696,2490.7,2490.6,0.80249]
[1749244652329,1.46745,2491.1,2491.0,0.80236]
[1749244652536,2.6245216,2491.1,2491.0,0.80236]
[1749244653838,3.9044216,2491.1,2491.0,0.80236]
[1749244655142,0.80242,2490.9,2490.8,0.80239]
[1749244655344,1.9594916,2490.9,2490.8,0.80239]
[1749244655944,0.80245,2490.7,2490.6,0.87381351]
[1749244656139,1.9595216,2490.7,2490.6,0.87381351]
[1749244662251,1.1570716,2490.7,2490.6,0.87381351]
[1749244663150,1.43783,2490.8,2490.7,0.80245]
[1749244663351,2.59610987,2490.8,2490.7,0.80245]
[1749244664646,1.43783,2490.8,2490.7,0.80245]
[1749244664846,2.59611722,2490.8,2490.7,0.80245]
[1749244666353,0.80245,2490.7,2490.6,0.07133351]
[1749244666652,0.80255,2490.4,2490.3,0.00602168]
[1749244667154,1.96083722,2490.4,2490.3,0.00602168]
[1749244667652,6.53883722,2490.4,2490.3,0.00602168]
[1749244669754,6.53883722,2490.4,2490.3,0.07735519]
[1749244675659,2.00677,2490.0,2489.6,3.2078]
[1749244675963,0.80284,2489.6,2489.5,0.80282]
[1749244676455,1.96604709,2489.6,2489.5,0.80282]
[1749244677358,1.16320709,2489.6,2489.5,0.80282]
[1749244677558,0.80277,2489.8,2489.7,0.80278]
[1749244677760,1.96487775,2489.8,2489.7,0.80278]
[1749244679259,0.80281,2489.7,2489.6,0.80279]
[1749244679465,1.96491775,2489.7,2489.6,0.80279]
[1749244680255,3.16905775,2489.7,2489.3,4.74402168]
[1749244680461,0.80287,2489.4,2489.3,0.80891168]
[1749244680656,4.01066,2489.5,2489.3,0.00602168]
[1749244680865,4.70456,2489.5,2489.4,0.80287]
[1749244681059,5.86572855,2489.5,2489.4,0.80287]
[1749244681261,5.86572855,2489.5,2489.4,1.43437]
[1749244681457,4.70456,2489.5,2489.4,1.43437]
[1749244681659,5.86529477,2489.5,2489.4,1.43437]
[1749244682164,5.06243477,2489.5,2489.4,1.43437]
[1749244682466,4.01064,2489.5,2489.4,1.43437]
[1749244682667,0.80287,2489.4,2489.3,0.80891168]
[1749244684660,1.49676,2489.5,2489.4,0.80287]
[1749244685055,0.6939,2489.5,2489.4,0.87420351]
[1749244685256,5.21468,2489.8,2489.7,0.80278]
[1749244685257,8.74956,2489.8,2489.7,0.80278]
[1749244685565,6.70100556,2489.8,2489.7,0.80278]
[1749244685767,5.89824556,2489.8,2489.5,0.6815]
[1749244686070,0.80281,2489.6,2489.5,1.4843]
[1749244687565,0.80284,2489.5,2489.4,0.87419351]
[1749244687760,1.1594185,2489.5,2489.4,0.07133351]
[1749244687960,0.80272,2490.0,2489.9,0.8027]
[1749244688160,1.96221366,2490.0,2489.9,0.8027]
[1749244688767,3.2078,2490.4,2490.3,0.80258]
[1749244689074,0.80852168,2490.6,2490.5,0.80252]
[1749244689368,0.00602168,2490.6,2490.5,0.80252]
[1749244690170,0.00602168,2490.6,2490.5,1.48012]
[1749244690872,0.00602168,2490.6,2490.5,6.21912]
[1749244694272,0.00602168,2490.6,2490.5,1.48012]
[1749244695462,0.00602168,2490.6,2490.5,2.78112]
[1749244697677,4.01004,2491.4,2491.3,0.80226]
[1749244697869,4.68694,2491.4,2491.3,0.80226]
[1749244699176,0.80229,2491.3,2491.2,0.80227]
[1749244699378,0.80229,2491.3,2491.1,0.00602168]
[1749244699379,0.80229,2491.2,2491.1,0.80834168]
[1749244700175,2.11429,2491.2,2491.1,0.80834168]
[1749244700477,2.11429,2491.2,2491.1,0.00602168]
[1749244700677,3.26919627,2491.2,2491.1,0.00602168]
[1749244701371,1.95719627,2491.2,2491.1,0.80834168]
[1749244702178,1.15490627,2491.2,2491.1,0.80834168]
[1749244702377,4.68695,2491.4,2491.3,0.80226]
[1749244702578,5.84117508,2491.4,2491.3,0.80226]
[1749244703573,0.80226,2491.3,2491.2,1.45168]
[1749244704880,0.80229,2491.2,2491.1,0.80832168]
[1749244705878,0.80229,2491.2,2491.1,0.00602168]
[1749244706781,2.16038,2491.3,2491.1,0.00602168]
[1749244706981,0.80228,2491.3,2491.2,0.80229]
[1749244710580,0.80223,2491.5,2491.4,0.8022]
[1749244711775,0.68162168,2491.6,2491.3,0.80224]
[1749244711776,0.80226,2491.4,2491.3,0.80224]
[1749244711982,1.49096,2491.4,2491.3,0.80224]
[1749244712182,0.6887,2491.4,2491.3,0.80224]
[1749244713183,0.80223,2491.4,2491.3,0.80224]
[1749244714381,2.00557,2491.5,2491.1,0.00602168]
[1749244714689,0.80226,2491.4,2491.3,0.80223]
[1749244715686,0.80229,2491.3,2491.2,0.80227]
[1749244716984,0.80229,2491.2,2491.1,0.80831168]
[1749244718690,1.9603602,2491.2,2491.1,0.80831168]
[1749244718987,3.8904602,2491.2,2491.1,0.80831168]
[1749244720384,3.8904602,2491.2,2491.1,0.00602168]
[1749244720790,0.80249,2490.6,2490.5,3.2078]
[1749244720988,0.80255,2490.4,2490.3,0.80257]
[1749244721594,2.09045,2490.4,2490.3,0.80258]
[1749244722292,1.2879,2490.4,2490.1,0.00602168]
[1749244722495,0.80261,2490.2,2490.1,0.80863168]
[1749244722991,1.45071,2490.2,2490.1,0.80863168]
[1749244727405,0.6481,2490.2,2490.1,0.80863168]
[1749244729603,0.6481,2490.2,2490.1,0.87996519]
[1749244730106,1.45071,2490.2,2490.1,0.87996519]
[1749244730307,2.83041,2490.2,2490.1,0.87996519]
[1749244731009,2.0278,2490.2,2490.1,0.87996519]
[1749244731307,0.6481,2490.2,2490.1,0.87996519]
[1749244732004,0.648,2490.5,2490.4,0.80255]
[1749244732209,1.80107378,2490.5,2490.4,0.80255]
[1749244732414,0.648,2490.5,2490.4,0.80255]
[1749244733608,1.45052,2490.5,2490.4,0.80255]
[1749244735911,0.648,2490.5,2490.4,0.80255]
[1749244736211,0.80248,2490.7,2490.6,0.80245]
[1749244736407,1.95444285,2490.7,2490.6,0.80245]
[1749244736805,3.28684285,2490.7,2490.6,0.80245]
[1749244740217,0.80253,2490.6,2490.5,0.8025]
[1749244740512,1.95449285,2490.6,2490.5,0.8025]
[1749244742818,0.80255,2490.4,2490.3,4.01035]
[1749244743120,0.8025,2490.7,2490.6,0.80246]
[1749244743319,0.8025,2490.7,2490.4,0.80255]
[1749244743320,0.80253,2490.6,2490.5,0.80249]
[1749244743508,1.95672832,2490.6,2490.5,0.80249]
[1749244745907,1.95672832,2490.6,2490.5,0.87382351]
[1749244748316,1.15419832,2490.6,2490.5,0.87382351]
[1749244749420,1.95668832,2490.6,2490.5,0.07133351]
[1749244749617,1.95668832,2490.6,2490.5,0.87385351]
[1749244753924,1.15419832,2490.6,2490.5,0.87385351]
[1749244754326,1.15740392,2490.7,2490.5,0.07133351]
[1749244754528,1.15740392,2490.6,2490.5,2.20775351]
[1749244763032,1.15740392,2490.6,2490.5,5.41555351]
[1749244764927,2.79133,2491.1,2491.0,0.80236]
[1749244765229,4.62950181,2491.1,2491.0,0.80236]
[1749244766833,4.62922005,2491.1,2491.0,0.80236]
[1749244768232,0.80242,2490.9,2490.8,0.80238]
[1749244768428,1.43558,2491.0,2490.9,0.80239]
[1749244768633,3.93037001,2491.0,2490.9,0.80239]
[1749244769833,3.12799001,2491.0,2490.5,2.07761351]
[1749244770035,0.80244,2490.8,2490.7,0.80242]
[1749244770228,1.95823001,2490.8,2490.7,0.80242]
[1749244771428,1.339,2490.9,2490.7,0.80242]
[1749244771630,1.95867569,2490.8,2490.7,0.80242]
[1749244772529,1.15625569,2490.8,2490.7,0.80242]
[1749244772729,1.95867569,2490.8,2490.7,0.80242]
[1749244772929,3.25097569,2490.8,2490.7,0.80242]
[1749244774731,2.44855569,2490.8,2490.7,0.80242]
[1749244775631,3.25097569,2490.8,2490.7,0.80242]
[1749244776027,2.44855569,2490.8,2490.7,0.80242]
[1749244776436,2.44855569,2490.8,2490.7,0.87375351]
[1749244776935,1.15625569,2490.8,2490.7,0.87375351]
[1749244778337,1.95867569,2490.8,2490.7,0.87375351]
[1749244782348,1.15625569,2490.8,2490.7,0.87375351]
[1749244783347,1.95867569,2490.8,2490.7,0.87375351]
[1749244786051,1.15625569,2490.8,2490.7,0.87375351]
[1749244786854,1.95867569,2490.8,2490.7,0.87375351]
[1749244788156,1.18775772,2490.8,2490.7,0.87375351]
[1749244788755,1.99017772,2490.8,2490.7,0.87375351]
[1749244789946,1.18775772,2490.8,2490.7,0.87375351]
[1749244790956,1.99017772,2490.8,2490.7,0.87375351]
[1749244791148,1.18775772,2490.8,2490.7,0.87375351]
[1749244792661,1.99017772,2490.8,2490.7,0.87375351]
[1749244793462,1.18775772,2490.8,2490.7,0.87375351]
[1749244793662,1.99017772,2490.8,2490.7,0.87375351]
[1749244794857,1.18775772,2490.8,2490.7,0.87375351]
[1749244796559,1.18775772,2490.8,2490.7,4.08155351]
[1749244796865,1.18775772,2490.8,2490.7,0.87375351]
[1749244797459,1.99017772,2490.8,2490.7,0.87375351]
[1749244798964,1.18775772,2490.8,2490.7,0.87375351]
[1749244806870,1.99017772,2490.8,2490.7,0.87375351]
[1749244807172,2.56975772,2490.8,2490.7,0.87375351]
[1749244809076,3.37217772,2490.8,2490.7,0.87375351]
[1749244810275,2.56975772,2490.8,2490.7,0.87375351]
[1749244813277,3.37217772,2490.8,2490.7,0.87375351]
[1749244813467,2.56975772,2490.8,2490.7,0.87375351]
[1749244813777,1.18775772,2490.8,2490.7,0.87375351]
[1749244815277,1.99017772,2490.8,2490.7,0.87375351]
[1749244816175,1.18775772,2490.8,2490.7,0.87375351]
[1749244816578,1.18775772,2490.8,2490.7,4.08155351]
[1749244816879,1.18775772,2490.8,2490.7,9.08155351]